{"text_format":"1","workbook":"xlsx","n_sheets":2,"sheets":["Import","SMQ menu"],"not_rendered":{"charts":0,"images":1,"macros":1,"external_links":0,"defined_names":6,"comments":1,"pivot_tables":0},"unopened":[],"bounds":{"document_bytes":16777216,"sheet_cells":100000,"rows_first":2000,"rows_last":500,"rows_between":2000,"halvings":0,"cell_chars":16384,"cell_head_chars":4096},"cells_cut":0,"cells_raw":0,"read":"whole","date_system":"1900"}

{"sheet":"Import","index":0,"n_rows":200,"n_cols":67,"rows_kept":200,"cut":false,"hidden":false,"merged":[[11,1,15,1],[14,0,18,0],[20,49,20,53],[20,54,20,61],[22,13,23,13],[22,14,23,14],[20,33,20,40],[20,41,20,48]]}
[null,null,"SE 2050 Database Import Spreadsheet Template"]
[null,null,"General Information",null,null,null,null,null,null,null,"Spreadsheet Revision History"]
[null,null,"- Always add project data beginning at Cell B38. Do not modify rows 1-37 or Column A; these are for information only.",null,null,null,null,null,null,null,"Version ","Date Released","Updates"]
[null,null,"- Gray cells in rows 25-37 indicate allowed inputs (bold) or allowed input types (italics) for each column. Deviating from the allowed inputs will cause an import error.",null,null,null,null,null,null,null,"1.0","2021-08-16","original spreadsheet"]
[null,null,"- Refer to the SE 2050 Database User Guide (se2050.org/se-2050-database/) for more information and clarification about all data fields ",null,null,null,null,null,null,null,"1.01","2021-10-27","changed cell AE23 from \"Shallow Foundations\" to \"Shallow Foundation\" to correct data validation and import error; corrected data validation error in column BF; corrected instructions in cell C5 (rows referenced for allowed inputs)"]
[null,null,"Entering Project Data without optional Structural Material Quantities",null,null,null,null,null,null,null,"1.1","2023-09-18","updated format of GWP data input to include breakdown of LCA stages and biogenic carbon; added data validation macro; added notes to cells in rows 21-22"]
[null,null,"- Use one row per project; in each row, enter \"Project\" in Column B, and enter project data in columns C through BK",null,null,null,null,null,null,null,"1.11","2023-11-22","changed \"…Foundations...\" to \"…Foundation…\" in cells AE24 and AE25 to align with database nomenclature; modified some notes in rows 21-22"]
[null,null,"Entering Project Data with optional Structural Material Quantities",null,null,null,null,null,null,null,"1.12","2023-12-20","corrected errors in the validation macro for input fields in columns J and T"]
[null,null,"- Enter Project data similar to above; enter \"Project\" in Column B, and enter project data in columns C through BK in that row"]
[null,null,"     - Following the initial Project row, use one row per material entry; enter \"Material\" in Column B in each row with a material, leave columns B through BK blank, and fill in columns BL through BO"]
[null,null,"     - It is permissible to include projects with and without Structural Material Quanitites in the same spreadsheet. Entering \"Project\" in Column B indicates a new project is starting"]
[null,"REQUIRED: \nVALIDATE DATA PRIOR TO UPLOADING TO \nSE 2050 DATABASE","Validate data using the built-in macro"]
[null,null,"- If prompted with a security warning that macros have been disabled, click \"Enable Macros.\"  If promopted with \"SECURITY RISK Microsoft has blocked macros…\", right-click on the file in File Explorer, select Properties, and check \"Unblock\" and select OK. "]
[null,null,"- Click the \"Validate Data\" button. Cells with invalid data will turn red. Fix all invalid cells and rerun the macro. Resolve all invalid cells prior to submitting to the SE 2050 Database"]
[null,null,"Importing data to the SE 2050 Database"]
[null,null,"- Save this file as .xlsm file type, close it, and log in to the SE 2050 Database (se2050.org/se-2050-database/)"]
[null,null,"- On the left navigation pane, select Projects, then click the \"Import Projects\" button near the top of the page"]
[null,null,"- Browse to find the saved .xlsm file, then click the \"Import\" button"]
[null,null,"Questions? Email: database@se2050.org"]
[null,"Data Type","Project Information",null,null,null,null,null,null,null,null,null,null,null,null,null,null,"Structural System Information",null,null,null,null,null,null,null,null,null,null,null,null,null,"Global Warming Potential Data",null,null,null,null,null,null,null,null,null,null,null,null,null,null,null,null,null,null,null,null,null,null,null,null,null,null,null,null,null,null,null,"Structural Material Quantities (Optional - enter \"Material\" in Column B)\n"]
["Data Field in Database:","N/A\nThis column used for spreadsheet import only","Project Name","Address","City","State","Country","ZIP Code","Primary Building Use Type","Construction Type","Construction Year Completed (or Anticipated)","Project Phase at LCA","Expected Building Life (years)","Gross Square Footage (ft2)","Mean Roof Height (feet)","Number of Stories, Above Grade","Number of Stories, Below Grade","Typical Column Grid, Long Direction (feet)","Typical Column Grid, Short Direction (feet)","Risk Category","Typical Floor Live Load (psf)","Ground Snow Load (psf)","Ultimate Wind Speed (mph)","Seismic Site Class","Seismic Design Category","Primary Horizontal Gravity System","Primary Vertical Gravity System","Primary Lateral System","Podium","Allowable Soil Bearing Pressure (psf)","Foundation Type","LCA Tool","Year LCA was performed","Excluding Biogenic Carbon (kgCO2e)",null,null,null,null,null,null,null,"Including Biogenic Carbon (kgCO2e)",null,null,null,null,null,null,null,"Building Substructure Components\n* Required (if applicable to project)\n** Foundations must be included - Choose either 'Deep Foundation' or 'Shallow Foundation'",null,null,null,null,"Building Superstructure Components\n* Required (if applicable to project)\n",null,null,null,null,null,null,null,"Show anonymized Project GWP Intensity on dashboard","Material","Type\n(Input options vary by Material)","Quantity\n(units vary - see User Guide)","Portland Cement Content (pcy)\nConcrete materials only"]
["Data Sub-Field (if applicable):",null,null,null,null,null,null,null,null,null,null,null,null,null,null,null,null,null,null,null,null,null,null,null,null,null,null,null,null,null,null,null,null,"A1-A3","A4","A5","B1-B5","C1-C4","D","Total GWP, Stages A-C (kgCO2e)","GWP Intensity, Stages A-C (kgCO2e/m2)","A1-A3","A4","A5","B1-B5","C1-C4","D","Total GWP, Stages A-C (kgCO2e)","GWP Intensity, Stages A-C (kgCO2e/m2)","Deep Foundation**","Shallow Foundation**","Slabs*","Walls*","Other: Embedded Steel Elements","Columns*","Beams*","Slab/Deck*","Vertical Bracing*","Walls*","Other: Connections","Other: Miscellaneous Steel","Other: Fireproofing","(visible only to SE 2050 signatory firms)"]
["Allowed Inputs :","Project","(No restrictions)","(No restrictions)","(No restrictions)","(Enter two-letter","(Enter \"United","(Use 5-digit ZIP","Office","New Construction","(Any integer","Concept",20,"(Any positive number)","(Any positive number)","(Any non-","(Any non-","(Any non-","(Any non-"," I (low risk to human life)","(Any non-","(Any non-","(Any non-","A","A","Concrete: PT Framing","Concrete: CIP","Concrete: Shear Walls","Not a podium building",2000,"Shallow Foundation","Athena IE","(Any integer between","(Any ","(Any ","(Any ","(Any ","(Any ","(Any ","Calculated,","Calculated,","(Any ","(Any ","(Any ","(Any ","(Any ","(Any ","Calculated,","Calculated,","Yes","Yes","Yes","Yes","Yes","Yes","Yes","Yes","Yes","Yes","Yes","Yes","Yes","Yes","Concrete","2500 PSI; 3000 PSI; 4000 PSI; 5000 PSI; 6000 PSI; 8000 PSI; 3000 PSI LW; 4000 PSI LW; 5000 PSI LW    [All in units of Cubic Yards]","(Any non-","(Any non-"]
[null,"Material",null,null,null,"abbreviation","States\" for","code for US","Public Assembly","Major Renovation of Existing Building: Vertical Expansion","between","Schematic",60,null,null,"negative","negative","negative","negative"," II (all buildings and other structures)","negative","negative","negative","B","B","Concrete: Non-PT Framing","Concrete: Precast","Concrete: Moment Frames","Primary system defined above is on a podium",3000,"Deep Foundation < 50'/15m","Tally","2000 and 2050,","number","number","number","number","number","number","do not modify","do not modify","number","number","number","number","number","number","do not modify","do not modify","No","No","No","No","No","No","No","No","No","No","No","No","No","No","Steel Reinforcement","Rebar; Welded Wire Reinforcement; Post Tensioning     [All in units of Tons]","negative","negative"]
[null,null,null,null,null,"for US states;","United States","addresses;","Education","Major Renovation of Existing Building: Structural Retrofit","2000 and 2050,","Design Development",75,null,null,"number)","number)","number)","number)"," III (buildings with a substantial risk to cause economic impact and/or mass disruption)","number)","number)","number)","C","C","Concrete: Precast","Concrete: Other","Concrete: Other","Primary system defined above is a podium",4000,"Deep Foundation > 50'/15m","Beacon","inclusive)","or blank)","or blank)","or blank)","or blank)","or blank)","or blank)",null,null,"or blank)","or blank)","or blank)","or blank)","or blank)","or blank)",null,null,null,null,null,null,null,null,null,null,null,null,null,null,null,null,"Masonry","Normal Weight Masonry Block [Tons]; Light Weight Masonry Block [Tons]; Masonry Grout [Cubic Yards]; Mortar [Cubic Yards]","number)","number)"]
[null,null,null,null,null,"no restrictions","of America;","no restrictions","Industrial","Major Renovation of Existing Building: Other","inclusive)","Construction Documents",100,null,null,null,null,null,null," IV (buildings and other structures designated as essential facilities or the failure of which could pose a substantial hazard to the community)",null,null,null,"D","D","Concrete: Other","Steel: Columns","Steel: Braced Frames",null,5000,"Other Foundation System","Quartz",null,null,null,null,null,null,null,null,null,null,null,null,null,null,null,null,null,null,null,null,null,null,null,null,null,null,null,null,null,null,null,"Steel","Rolled Steel Shapes; Plate Steel Fabrications; Tube Steel (HSS); Open Web Steel Joists; Steel Deck; Cold Formed Metal Framing     [All in units of Tons]"]
[null,null,null,null,null,"for other states/","no restrictions","for other","Mercantile",null,null,"Construction",null,null,null,null,null,null,null,null,null,null,null,"E","E","Steel: Frame + Concrete on Metal Deck","Steel: Cold-Formed","Steel: Moment Frames",null,6000,null,"EC3",null,null,null,null,null,null,null,null,null,null,null,null,null,null,null,null,null,null,null,null,null,null,null,null,null,null,null,null,null,null,null,"Timber","Softwood Lumber; Softwood Plywood; Glulam; Cross Laminated Timber; Laminated Veneer Lumber; Wood I Joists     [All in units of Cubic Feet, Except Wood I Joists in units of LBS]"]
[null,null,null,null,null,"provinces in","for other","countries)","Multi-Family Residential",null,null,"Completed",null,null,null,null,null,null,null,null,null,null,null,"F","F","Steel: Frame + Bare Metal Deck","Steel: Other","Steel: Other",null,7000,null,"One Click"]
[null,null,null,null,null,"other countries)","countries)",null,"Warehouse",null,null,null,null,null,null,null,null,null,null,null,null,null,null,null,null,"Steel: Other","Wood: Mass Timber","Light Frame Shear Panels",null,8000,null,"Embodied Carbon Order of Magnitude (ECOM)"]
[null,null,null,null,null,null,null,null,"Other",null,null,null,null,null,null,null,null,null,null,null,null,null,null,null,null,"Wood: Joists and Sheathing","Wood: Light-Frame","Masonry: Shear Walls",null,9000,null,"eTool"]
[null,null,null,null,null,null,null,null,"Public Order and Safety",null,null,null,null,null,null,null,null,null,null,null,null,null,null,null,null,"Wood: Engineered Panels","Wood: Other","Wood: Shear Panels",null,10000,null,"Environmental Product Declarations (EPDs)"]
[null,null,null,null,null,null,null,null,"Single-Family Residential",null,null,null,null,null,null,null,null,null,null,null,null,null,null,null,null,"Wood: Other","Masonry","Wood: Other",null,15000,null,"Simapro"]
[null,null,null,null,null,null,null,null,"Parking",null,null,null,null,null,null,null,null,null,null,null,null,null,null,null,null,"Other Material (not concrete, steel, or wood)","Other Material (not concrete, steel, wood, or masonry)","Other",null,20000,null,"Other"]
[null,null,null,null,null,null,null,null,"Lodging",null,null,null,null,null,null,null,null,null,null,null,null,null,null,null,null,null,null,null,null,30000]
[null,null,null,null,null,null,null,null,"Health Care",null,null,null,null,null,null,null,null,null,null,null,null,null,null,null,null,null,null,null,null,40000]
["Project Data starts here:","Project","_Sample Project 01","432 Zelby Lane","Thibodaux","LA","United States",70301,"Education","New Construction",2024,"Concept",60,24300,32,2,1,36,28," III (buildings with a substantial risk to cause economic impact and/or mass disruption)",100,0,125,"C","A","Wood: Engineered Panels","Wood: Mass Timber","Wood: Shear Panels","Not a podium building",3000,"Shallow Foundation","Environmental Product Declarations (EPDs)",2021,212400,null,null,null,null,null,{"$f":"IF(ISBLANK(AH36),\"\",SUM(AH36:AL36))","v":212400},{"$f":"IF(ISBLANK(AH36),\"\",AN36/$N36/0.092903)","v":94.084590817742594},null,null,null,null,null,null,{"$f":"IF(ISBLANK(AP36),\"\",SUM(AP36:AT36))","v":""},{"$f":"IF(ISBLANK(AP36),\"\",AV36/$N36/0.092903)","v":""},"No","Yes","Yes","Yes","No","Yes","Yes","Yes","No","Yes","No","No","No","Yes"]
["Sample data shown,","Project","_Sample Project 02","9007 Fleming Rd","Homestead","FL","United States","03033","Industrial","New Construction",2022,"Design Development",60,226000,39,2,0,40,36," IV (buildings and other structures designated as essential facilities or the failure of which could pose a substantial hazard to the community)",150,0,130,"C","A","Steel: Frame + Concrete on Metal Deck","Steel: Columns","Steel: Braced Frames","Not a podium building",4000,"Shallow Foundation","Athena IE",2020,8032048,803204.8,502003,502003,200801.2,null,{"$f":"IF(ISBLANK(AH37),\"\",SUM(AH37:AL37))","v":10040060},{"$f":"IF(ISBLANK(AH37),\"\",AN37/$N37/0.092903)","v":478.18740242820587},null,null,null,null,null,null,{"$f":"IF(ISBLANK(AP37),\"\",SUM(AP37:AT37))","v":""},{"$f":"IF(ISBLANK(AP37),\"\",AV37/$N37/0.092903)","v":""},"No","Yes","Yes","No","No","Yes","Yes","Yes","Yes","No","Yes","Yes","Yes","Yes"]
["one project per row","Project","_Sample Project 03","2229 243rd St","Revere","MA","United States","02151","Warehouse","New Construction",2022,"Completed",60,96400,36,1,0,60,30," II (all buildings and other structures)",100,35,110,"C","B","Steel: Frame + Bare Metal Deck","Steel: Columns","Steel: Braced Frames","Not a podium building",8000,"Shallow Foundation","Tally",2021,3153600,315360,197100,197100,78840,-70324,3942000,{"$f":"IF(ISBLANK(AH38),\"\",AN38/$N38/0.092903)","v":440.1592648522934},3024758,315360,205108,195674,79648,-68210,3820548,426.59807179424143,"No","Yes","Yes","No","No","Yes","Yes","Yes","Yes","No","No","No","No","Yes"]
["Sample entry with optional","Project","_Sample Project 04","3446 Alant Pl","Flowery Branch","GA","United States",30542,"Public Assembly","New Construction",2022,"Concept",60,31640,166,2,1,24,20," III (buildings with a substantial risk to cause economic impact and/or mass disruption)",40,0,115,"C","A","Concrete: Non-PT Framing","Concrete: CIP","Concrete: Shear Walls","Not a podium building",6000,"Deep Foundation < 50'/15m","Embodied Carbon Order of Magnitude (ECOM)",2020,1340000,null,null,null,null,null,1340000,455.8674515987496,null,null,null,null,null,null,"","","Yes","Yes","Yes","Yes","No","Yes","Yes","Yes","No","Yes","No","No","No","Yes"]
["Structural Material Quantities","Material",null,null,null,null,null,null,null,null,null,null,null,null,null,null,null,null,null,null,null,null,null,null,null,null,null,null,null,null,null,null,null,null,null,null,null,null,null,"","",null,null,null,null,null,null,"","",null,null,null,null,null,null,null,null,null,null,null,null,null,null,"Concrete","4000 PSI",262,250]
["(See columns BE through BH):","Material",null,null,null,null,null,null,null,null,null,null,null,null,null,null,null,null,null,null,null,null,null,null,null,null,null,null,null,null,null,null,null,null,null,null,null,null,null,"","",null,null,null,null,null,null,"","",null,null,null,null,null,null,null,null,null,null,null,null,null,null,"Concrete","6000 PSI",980]
[null,"Material",null,null,null,null,null,null,null,null,null,null,null,null,null,null,null,null,null,null,null,null,null,null,null,null,null,null,null,null,null,null,null,null,null,null,null,null,null,"","",null,null,null,null,null,null,"","",null,null,null,null,null,null,null,null,null,null,null,null,null,null,"Steel Reinforcement","Rebar",89]
[null,"Material",null,null,null,null,null,null,null,null,null,null,null,null,null,null,null,null,null,null,null,null,null,null,null,null,null,null,null,null,null,null,null,null,null,null,null,null,null,"","",null,null,null,null,null,null,"","",null,null,null,null,null,null,null,null,null,null,null,null,null,null,"Masonry","Normal Weight Masonry Block",22]
[null,"Material",null,null,null,null,null,null,null,null,null,null,null,null,null,null,null,null,null,null,null,null,null,null,null,null,null,null,null,null,null,null,null,null,null,null,null,null,null,"","",null,null,null,null,null,null,"","",null,null,null,null,null,null,null,null,null,null,null,null,null,null,"Masonry","Masonry Grout",11]
[null,"Material",null,null,null,null,null,null,null,null,null,null,null,null,null,null,null,null,null,null,null,null,null,null,null,null,null,null,null,null,null,null,null,null,null,null,null,null,null,"","",null,null,null,null,null,null,"","",null,null,null,null,null,null,null,null,null,null,null,null,null,null,"Masonry","Mortar",0.9]
[null,null,null,null,null,null,null,null,null,null,null,null,null,null,null,null,null,null,null,null,null,null,null,null,null,null,null,null,null,null,null,null,null,null,null,null,null,null,null,"","",null,null,null,null,null,null,"",""]
[null,null,null,null,null,null,null,null,null,null,null,null,null,null,null,null,null,null,null,null,null,null,null,null,null,null,null,null,null,null,null,null,null,null,null,null,null,null,null,"","",null,null,null,null,null,null,"",""]
[null,null,null,null,null,null,null,null,null,null,null,null,null,null,null,null,null,null,null,null,null,null,null,null,null,null,null,null,null,null,null,null,null,null,null,null,null,null,null,"","",null,null,null,null,null,null,"",""]
[null,null,null,null,null,null,null,null,null,null,null,null,null,null,null,null,null,null,null,null,null,null,null,null,null,null,null,null,null,null,null,null,null,null,null,null,null,null,null,"","",null,null,null,null,null,null,"",""]
[null,null,null,null,null,null,null,null,null,null,null,null,null,null,null,null,null,null,null,null,null,null,null,null,null,null,null,null,null,null,null,null,null,null,null,null,null,null,null,"","",null,null,null,null,null,null,"",""]
[null,null,null,null,null,null,null,null,null,null,null,null,null,null,null,null,null,null,null,null,null,null,null,null,null,null,null,null,null,null,null,null,null,null,null,null,null,null,null,"","",null,null,null,null,null,null,"",""]
[null,null,null,null,null,null,null,null,null,null,null,null,null,null,null,null,null,null,null,null,null,null,null,null,null,null,null,null,null,null,null,null,null,null,null,null,null,null,null,"","",null,null,null,null,null,null,"",""]
[null,null,null,null,null,null,null,null,null,null,null,null,null,null,null,null,null,null,null,null,null,null,null,null,null,null,null,null,null,null,null,null,null,null,null,null,null,null,null,"","",null,null,null,null,null,null,"",""]
[null,null,null,null,null,null,null,null,null,null,null,null,null,null,null,null,null,null,null,null,null,null,null,null,null,null,null,null,null,null,null,null,null,null,null,null,null,null,null,"","",null,null,null,null,null,null,"",""]
[null,null,null,null,null,null,null,null,null,null,null,null,null,null,null,null,null,null,null,null,null,null,null,null,null,null,null,null,null,null,null,null,null,null,null,null,null,null,null,"","",null,null,null,null,null,null,"",""]
[null,null,null,null,null,null,null,null,null,null,null,null,null,null,null,null,null,null,null,null,null,null,null,null,null,null,null,null,null,null,null,null,null,null,null,null,null,null,null,"","",null,null,null,null,null,null,"",""]
[null,null,null,null,null,null,null,null,null,null,null,null,null,null,null,null,null,null,null,null,null,null,null,null,null,null,null,null,null,null,null,null,null,null,null,null,null,null,null,"","",null,null,null,null,null,null,"",""]
[null,null,null,null,null,null,null,null,null,null,null,null,null,null,null,null,null,null,null,null,null,null,null,null,null,null,null,null,null,null,null,null,null,null,null,null,null,null,null,"","",null,null,null,null,null,null,"",""]
[null,null,null,null,null,null,null,null,null,null,null,null,null,null,null,null,null,null,null,null,null,null,null,null,null,null,null,null,null,null,null,null,null,null,null,null,null,null,null,"","",null,null,null,null,null,null,"",""]
[null,null,null,null,null,null,null,null,null,null,null,null,null,null,null,null,null,null,null,null,null,null,null,null,null,null,null,null,null,null,null,null,null,null,null,null,null,null,null,"","",null,null,null,null,null,null,"",""]
[null,null,null,null,null,null,null,null,null,null,null,null,null,null,null,null,null,null,null,null,null,null,null,null,null,null,null,null,null,null,null,null,null,null,null,null,null,null,null,"","",null,null,null,null,null,null,"",""]
[null,null,null,null,null,null,null,null,null,null,null,null,null,null,null,null,null,null,null,null,null,null,null,null,null,null,null,null,null,null,null,null,null,null,null,null,null,null,null,"","",null,null,null,null,null,null,"",""]
[null,null,null,null,null,null,null,null,null,null,null,null,null,null,null,null,null,null,null,null,null,null,null,null,null,null,null,null,null,null,null,null,null,null,null,null,null,null,null,"","",null,null,null,null,null,null,"",""]
[null,null,null,null,null,null,null,null,null,null,null,null,null,null,null,null,null,null,null,null,null,null,null,null,null,null,null,null,null,null,null,null,null,null,null,null,null,null,null,"","",null,null,null,null,null,null,"",""]
[null,null,null,null,null,null,null,null,null,null,null,null,null,null,null,null,null,null,null,null,null,null,null,null,null,null,null,null,null,null,null,null,null,null,null,null,null,null,null,"","",null,null,null,null,null,null,"",""]
[null,null,null,null,null,null,null,null,null,null,null,null,null,null,null,null,null,null,null,null,null,null,null,null,null,null,null,null,null,null,null,null,null,null,null,null,null,null,null,"","",null,null,null,null,null,null,"",""]
[null,null,null,null,null,null,null,null,null,null,null,null,null,null,null,null,null,null,null,null,null,null,null,null,null,null,null,null,null,null,null,null,null,null,null,null,null,null,null,"","",null,null,null,null,null,null,"",""]
[null,null,null,null,null,null,null,null,null,null,null,null,null,null,null,null,null,null,null,null,null,null,null,null,null,null,null,null,null,null,null,null,null,null,null,null,null,null,null,"","",null,null,null,null,null,null,"",""]
[null,null,null,null,null,null,null,null,null,null,null,null,null,null,null,null,null,null,null,null,null,null,null,null,null,null,null,null,null,null,null,null,null,null,null,null,null,null,null,"","",null,null,null,null,null,null,"",""]
[null,null,null,null,null,null,null,null,null,null,null,null,null,null,null,null,null,null,null,null,null,null,null,null,null,null,null,null,null,null,null,null,null,null,null,null,null,null,null,"","",null,null,null,null,null,null,"",""]
[null,null,null,null,null,null,null,null,null,null,null,null,null,null,null,null,null,null,null,null,null,null,null,null,null,null,null,null,null,null,null,null,null,null,null,null,null,null,null,"","",null,null,null,null,null,null,"",""]
[null,null,null,null,null,null,null,null,null,null,null,null,null,null,null,null,null,null,null,null,null,null,null,null,null,null,null,null,null,null,null,null,null,null,null,null,null,null,null,"","",null,null,null,null,null,null,"",""]
[null,null,null,null,null,null,null,null,null,null,null,null,null,null,null,null,null,null,null,null,null,null,null,null,null,null,null,null,null,null,null,null,null,null,null,null,null,null,null,"","",null,null,null,null,null,null,"",""]
[null,null,null,null,null,null,null,null,null,null,null,null,null,null,null,null,null,null,null,null,null,null,null,null,null,null,null,null,null,null,null,null,null,null,null,null,null,null,null,"","",null,null,null,null,null,null,"",""]
[null,null,null,null,null,null,null,null,null,null,null,null,null,null,null,null,null,null,null,null,null,null,null,null,null,null,null,null,null,null,null,null,null,null,null,null,null,null,null,"","",null,null,null,null,null,null,"",""]
[null,null,null,null,null,null,null,null,null,null,null,null,null,null,null,null,null,null,null,null,null,null,null,null,null,null,null,null,null,null,null,null,null,null,null,null,null,null,null,"","",null,null,null,null,null,null,"",""]
[null,null,null,null,null,null,null,null,null,null,null,null,null,null,null,null,null,null,null,null,null,null,null,null,null,null,null,null,null,null,null,null,null,null,null,null,null,null,null,"","",null,null,null,null,null,null,"",""]
[null,null,null,null,null,null,null,null,null,null,null,null,null,null,null,null,null,null,null,null,null,null,null,null,null,null,null,null,null,null,null,null,null,null,null,null,null,null,null,"","",null,null,null,null,null,null,"",""]
[null,null,null,null,null,null,null,null,null,null,null,null,null,null,null,null,null,null,null,null,null,null,null,null,null,null,null,null,null,null,null,null,null,null,null,null,null,null,null,"","",null,null,null,null,null,null,"",""]
[null,null,null,null,null,null,null,null,null,null,null,null,null,null,null,null,null,null,null,null,null,null,null,null,null,null,null,null,null,null,null,null,null,null,null,null,null,null,null,"","",null,null,null,null,null,null,"",""]
[null,null,null,null,null,null,null,null,null,null,null,null,null,null,null,null,null,null,null,null,null,null,null,null,null,null,null,null,null,null,null,null,null,null,null,null,null,null,null,"","",null,null,null,null,null,null,"",""]
[null,null,null,null,null,null,null,null,null,null,null,null,null,null,null,null,null,null,null,null,null,null,null,null,null,null,null,null,null,null,null,null,null,null,null,null,null,null,null,"","",null,null,null,null,null,null,"",""]
[null,null,null,null,null,null,null,null,null,null,null,null,null,null,null,null,null,null,null,null,null,null,null,null,null,null,null,null,null,null,null,null,null,null,null,null,null,null,null,"","",null,null,null,null,null,null,"",""]
[null,null,null,null,null,null,null,null,null,null,null,null,null,null,null,null,null,null,null,null,null,null,null,null,null,null,null,null,null,null,null,null,null,null,null,null,null,null,null,"","",null,null,null,null,null,null,"",""]
[null,null,null,null,null,null,null,null,null,null,null,null,null,null,null,null,null,null,null,null,null,null,null,null,null,null,null,null,null,null,null,null,null,null,null,null,null,null,null,"","",null,null,null,null,null,null,"",""]
[null,null,null,null,null,null,null,null,null,null,null,null,null,null,null,null,null,null,null,null,null,null,null,null,null,null,null,null,null,null,null,null,null,null,null,null,null,null,null,"","",null,null,null,null,null,null,"",""]
[null,null,null,null,null,null,null,null,null,null,null,null,null,null,null,null,null,null,null,null,null,null,null,null,null,null,null,null,null,null,null,null,null,null,null,null,null,null,null,"","",null,null,null,null,null,null,"",""]
[null,null,null,null,null,null,null,null,null,null,null,null,null,null,null,null,null,null,null,null,null,null,null,null,null,null,null,null,null,null,null,null,null,null,null,null,null,null,null,"","",null,null,null,null,null,null,"",""]
[null,null,null,null,null,null,null,null,null,null,null,null,null,null,null,null,null,null,null,null,null,null,null,null,null,null,null,null,null,null,null,null,null,null,null,null,null,null,null,"","",null,null,null,null,null,null,"",""]
[null,null,null,null,null,null,null,null,null,null,null,null,null,null,null,null,null,null,null,null,null,null,null,null,null,null,null,null,null,null,null,null,null,null,null,null,null,null,null,"","",null,null,null,null,null,null,"",""]
[null,null,null,null,null,null,null,null,null,null,null,null,null,null,null,null,null,null,null,null,null,null,null,null,null,null,null,null,null,null,null,null,null,null,null,null,null,null,null,"","",null,null,null,null,null,null,"",""]
[null,null,null,null,null,null,null,null,null,null,null,null,null,null,null,null,null,null,null,null,null,null,null,null,null,null,null,null,null,null,null,null,null,null,null,null,null,null,null,"","",null,null,null,null,null,null,"",""]
[null,null,null,null,null,null,null,null,null,null,null,null,null,null,null,null,null,null,null,null,null,null,null,null,null,null,null,null,null,null,null,null,null,null,null,null,null,null,null,"","",null,null,null,null,null,null,"",""]
[null,null,null,null,null,null,null,null,null,null,null,null,null,null,null,null,null,null,null,null,null,null,null,null,null,null,null,null,null,null,null,null,null,null,null,null,null,null,null,"","",null,null,null,null,null,null,"",""]
[null,null,null,null,null,null,null,null,null,null,null,null,null,null,null,null,null,null,null,null,null,null,null,null,null,null,null,null,null,null,null,null,null,null,null,null,null,null,null,"","",null,null,null,null,null,null,"",""]
[null,null,null,null,null,null,null,null,null,null,null,null,null,null,null,null,null,null,null,null,null,null,null,null,null,null,null,null,null,null,null,null,null,null,null,null,null,null,null,"","",null,null,null,null,null,null,"",""]
[null,null,null,null,null,null,null,null,null,null,null,null,null,null,null,null,null,null,null,null,null,null,null,null,null,null,null,null,null,null,null,null,null,null,null,null,null,null,null,"","",null,null,null,null,null,null,"",""]
[null,null,null,null,null,null,null,null,null,null,null,null,null,null,null,null,null,null,null,null,null,null,null,null,null,null,null,null,null,null,null,null,null,null,null,null,null,null,null,"","",null,null,null,null,null,null,"",""]
[null,null,null,null,null,null,null,null,null,null,null,null,null,null,null,null,null,null,null,null,null,null,null,null,null,null,null,null,null,null,null,null,null,null,null,null,null,null,null,"","",null,null,null,null,null,null,"",""]
[null,null,null,null,null,null,null,null,null,null,null,null,null,null,null,null,null,null,null,null,null,null,null,null,null,null,null,null,null,null,null,null,null,null,null,null,null,null,null,"","",null,null,null,null,null,null,"",""]
[null,null,null,null,null,null,null,null,null,null,null,null,null,null,null,null,null,null,null,null,null,null,null,null,null,null,null,null,null,null,null,null,null,null,null,null,null,null,null,{"$f":"IF(ISBLANK(AH101),\"\",SUM(AH101:AL101))","v":""},{"$f":"IF(ISBLANK(AH101),\"\",AN101/$N101/0.092903)","v":""},null,null,null,null,null,null,{"$f":"IF(ISBLANK(AP101),\"\",SUM(AP101:AT101))","v":""},{"$f":"IF(ISBLANK(AP101),\"\",AV101/$N101/0.092903)","v":""}]
[null,null,null,null,null,null,null,null,null,null,null,null,null,null,null,null,null,null,null,null,null,null,null,null,null,null,null,null,null,null,null,null,null,null,null,null,null,null,null,"","",null,null,null,null,null,null,"",""]
[null,null,null,null,null,null,null,null,null,null,null,null,null,null,null,null,null,null,null,null,null,null,null,null,null,null,null,null,null,null,null,null,null,null,null,null,null,null,null,"","",null,null,null,null,null,null,"",""]
[null,null,null,null,null,null,null,null,null,null,null,null,null,null,null,null,null,null,null,null,null,null,null,null,null,null,null,null,null,null,null,null,null,null,null,null,null,null,null,"","",null,null,null,null,null,null,"",""]
[null,null,null,null,null,null,null,null,null,null,null,null,null,null,null,null,null,null,null,null,null,null,null,null,null,null,null,null,null,null,null,null,null,null,null,null,null,null,null,"","",null,null,null,null,null,null,"",""]
[null,null,null,null,null,null,null,null,null,null,null,null,null,null,null,null,null,null,null,null,null,null,null,null,null,null,null,null,null,null,null,null,null,null,null,null,null,null,null,"","",null,null,null,null,null,null,"",""]
[null,null,null,null,null,null,null,null,null,null,null,null,null,null,null,null,null,null,null,null,null,null,null,null,null,null,null,null,null,null,null,null,null,null,null,null,null,null,null,"","",null,null,null,null,null,null,"",""]
[null,null,null,null,null,null,null,null,null,null,null,null,null,null,null,null,null,null,null,null,null,null,null,null,null,null,null,null,null,null,null,null,null,null,null,null,null,null,null,"","",null,null,null,null,null,null,"",""]
[null,null,null,null,null,null,null,null,null,null,null,null,null,null,null,null,null,null,null,null,null,null,null,null,null,null,null,null,null,null,null,null,null,null,null,null,null,null,null,"","",null,null,null,null,null,null,"",""]
[null,null,null,null,null,null,null,null,null,null,null,null,null,null,null,null,null,null,null,null,null,null,null,null,null,null,null,null,null,null,null,null,null,null,null,null,null,null,null,"","",null,null,null,null,null,null,"",""]
[null,null,null,null,null,null,null,null,null,null,null,null,null,null,null,null,null,null,null,null,null,null,null,null,null,null,null,null,null,null,null,null,null,null,null,null,null,null,null,"","",null,null,null,null,null,null,"",""]
[null,null,null,null,null,null,null,null,null,null,null,null,null,null,null,null,null,null,null,null,null,null,null,null,null,null,null,null,null,null,null,null,null,null,null,null,null,null,null,"","",null,null,null,null,null,null,"",""]
[null,null,null,null,null,null,null,null,null,null,null,null,null,null,null,null,null,null,null,null,null,null,null,null,null,null,null,null,null,null,null,null,null,null,null,null,null,null,null,"","",null,null,null,null,null,null,"",""]
[null,null,null,null,null,null,null,null,null,null,null,null,null,null,null,null,null,null,null,null,null,null,null,null,null,null,null,null,null,null,null,null,null,null,null,null,null,null,null,"","",null,null,null,null,null,null,"",""]
[null,null,null,null,null,null,null,null,null,null,null,null,null,null,null,null,null,null,null,null,null,null,null,null,null,null,null,null,null,null,null,null,null,null,null,null,null,null,null,"","",null,null,null,null,null,null,"",""]
[null,null,null,null,null,null,null,null,null,null,null,null,null,null,null,null,null,null,null,null,null,null,null,null,null,null,null,null,null,null,null,null,null,null,null,null,null,null,null,"","",null,null,null,null,null,null,"",""]
[null,null,null,null,null,null,null,null,null,null,null,null,null,null,null,null,null,null,null,null,null,null,null,null,null,null,null,null,null,null,null,null,null,null,null,null,null,null,null,"","",null,null,null,null,null,null,"",""]
[null,null,null,null,null,null,null,null,null,null,null,null,null,null,null,null,null,null,null,null,null,null,null,null,null,null,null,null,null,null,null,null,null,null,null,null,null,null,null,"","",null,null,null,null,null,null,"",""]
[null,null,null,null,null,null,null,null,null,null,null,null,null,null,null,null,null,null,null,null,null,null,null,null,null,null,null,null,null,null,null,null,null,null,null,null,null,null,null,"","",null,null,null,null,null,null,"",""]
[null,null,null,null,null,null,null,null,null,null,null,null,null,null,null,null,null,null,null,null,null,null,null,null,null,null,null,null,null,null,null,null,null,null,null,null,null,null,null,"","",null,null,null,null,null,null,"",""]
[null,null,null,null,null,null,null,null,null,null,null,null,null,null,null,null,null,null,null,null,null,null,null,null,null,null,null,null,null,null,null,null,null,null,null,null,null,null,null,"","",null,null,null,null,null,null,"",""]
[null,null,null,null,null,null,null,null,null,null,null,null,null,null,null,null,null,null,null,null,null,null,null,null,null,null,null,null,null,null,null,null,null,null,null,null,null,null,null,"","",null,null,null,null,null,null,"",""]
[null,null,null,null,null,null,null,null,null,null,null,null,null,null,null,null,null,null,null,null,null,null,null,null,null,null,null,null,null,null,null,null,null,null,null,null,null,null,null,"","",null,null,null,null,null,null,"",""]
[null,null,null,null,null,null,null,null,null,null,null,null,null,null,null,null,null,null,null,null,null,null,null,null,null,null,null,null,null,null,null,null,null,null,null,null,null,null,null,"","",null,null,null,null,null,null,"",""]
[null,null,null,null,null,null,null,null,null,null,null,null,null,null,null,null,null,null,null,null,null,null,null,null,null,null,null,null,null,null,null,null,null,null,null,null,null,null,null,"","",null,null,null,null,null,null,"",""]
[null,null,null,null,null,null,null,null,null,null,null,null,null,null,null,null,null,null,null,null,null,null,null,null,null,null,null,null,null,null,null,null,null,null,null,null,null,null,null,"","",null,null,null,null,null,null,"",""]
[null,null,null,null,null,null,null,null,null,null,null,null,null,null,null,null,null,null,null,null,null,null,null,null,null,null,null,null,null,null,null,null,null,null,null,null,null,null,null,"","",null,null,null,null,null,null,"",""]
[null,null,null,null,null,null,null,null,null,null,null,null,null,null,null,null,null,null,null,null,null,null,null,null,null,null,null,null,null,null,null,null,null,null,null,null,null,null,null,"","",null,null,null,null,null,null,"",""]
[null,null,null,null,null,null,null,null,null,null,null,null,null,null,null,null,null,null,null,null,null,null,null,null,null,null,null,null,null,null,null,null,null,null,null,null,null,null,null,"","",null,null,null,null,null,null,"",""]
[null,null,null,null,null,null,null,null,null,null,null,null,null,null,null,null,null,null,null,null,null,null,null,null,null,null,null,null,null,null,null,null,null,null,null,null,null,null,null,"","",null,null,null,null,null,null,"",""]
[null,null,null,null,null,null,null,null,null,null,null,null,null,null,null,null,null,null,null,null,null,null,null,null,null,null,null,null,null,null,null,null,null,null,null,null,null,null,null,"","",null,null,null,null,null,null,"",""]
[null,null,null,null,null,null,null,null,null,null,null,null,null,null,null,null,null,null,null,null,null,null,null,null,null,null,null,null,null,null,null,null,null,null,null,null,null,null,null,"","",null,null,null,null,null,null,"",""]
[null,null,null,null,null,null,null,null,null,null,null,null,null,null,null,null,null,null,null,null,null,null,null,null,null,null,null,null,null,null,null,null,null,null,null,null,null,null,null,"","",null,null,null,null,null,null,"",""]
[null,null,null,null,null,null,null,null,null,null,null,null,null,null,null,null,null,null,null,null,null,null,null,null,null,null,null,null,null,null,null,null,null,null,null,null,null,null,null,"","",null,null,null,null,null,null,"",""]
[null,null,null,null,null,null,null,null,null,null,null,null,null,null,null,null,null,null,null,null,null,null,null,null,null,null,null,null,null,null,null,null,null,null,null,null,null,null,null,"","",null,null,null,null,null,null,"",""]
[null,null,null,null,null,null,null,null,null,null,null,null,null,null,null,null,null,null,null,null,null,null,null,null,null,null,null,null,null,null,null,null,null,null,null,null,null,null,null,"","",null,null,null,null,null,null,"",""]
[null,null,null,null,null,null,null,null,null,null,null,null,null,null,null,null,null,null,null,null,null,null,null,null,null,null,null,null,null,null,null,null,null,null,null,null,null,null,null,"","",null,null,null,null,null,null,"",""]
[null,null,null,null,null,null,null,null,null,null,null,null,null,null,null,null,null,null,null,null,null,null,null,null,null,null,null,null,null,null,null,null,null,null,null,null,null,null,null,"","",null,null,null,null,null,null,"",""]
[null,null,null,null,null,null,null,null,null,null,null,null,null,null,null,null,null,null,null,null,null,null,null,null,null,null,null,null,null,null,null,null,null,null,null,null,null,null,null,"","",null,null,null,null,null,null,"",""]
[null,null,null,null,null,null,null,null,null,null,null,null,null,null,null,null,null,null,null,null,null,null,null,null,null,null,null,null,null,null,null,null,null,null,null,null,null,null,null,"","",null,null,null,null,null,null,"",""]
[null,null,null,null,null,null,null,null,null,null,null,null,null,null,null,null,null,null,null,null,null,null,null,null,null,null,null,null,null,null,null,null,null,null,null,null,null,null,null,"","",null,null,null,null,null,null,"",""]
[null,null,null,null,null,null,null,null,null,null,null,null,null,null,null,null,null,null,null,null,null,null,null,null,null,null,null,null,null,null,null,null,null,null,null,null,null,null,null,"","",null,null,null,null,null,null,"",""]
[null,null,null,null,null,null,null,null,null,null,null,null,null,null,null,null,null,null,null,null,null,null,null,null,null,null,null,null,null,null,null,null,null,null,null,null,null,null,null,"","",null,null,null,null,null,null,"",""]
[null,null,null,null,null,null,null,null,null,null,null,null,null,null,null,null,null,null,null,null,null,null,null,null,null,null,null,null,null,null,null,null,null,null,null,null,null,null,null,"","",null,null,null,null,null,null,"",""]
[null,null,null,null,null,null,null,null,null,null,null,null,null,null,null,null,null,null,null,null,null,null,null,null,null,null,null,null,null,null,null,null,null,null,null,null,null,null,null,"","",null,null,null,null,null,null,"",""]
[null,null,null,null,null,null,null,null,null,null,null,null,null,null,null,null,null,null,null,null,null,null,null,null,null,null,null,null,null,null,null,null,null,null,null,null,null,null,null,"","",null,null,null,null,null,null,"",""]
[null,null,null,null,null,null,null,null,null,null,null,null,null,null,null,null,null,null,null,null,null,null,null,null,null,null,null,null,null,null,null,null,null,null,null,null,null,null,null,"","",null,null,null,null,null,null,"",""]
[null,null,null,null,null,null,null,null,null,null,null,null,null,null,null,null,null,null,null,null,null,null,null,null,null,null,null,null,null,null,null,null,null,null,null,null,null,null,null,"","",null,null,null,null,null,null,"",""]
[null,null,null,null,null,null,null,null,null,null,null,null,null,null,null,null,null,null,null,null,null,null,null,null,null,null,null,null,null,null,null,null,null,null,null,null,null,null,null,"","",null,null,null,null,null,null,"",""]
[null,null,null,null,null,null,null,null,null,null,null,null,null,null,null,null,null,null,null,null,null,null,null,null,null,null,null,null,null,null,null,null,null,null,null,null,null,null,null,"","",null,null,null,null,null,null,"",""]
[null,null,null,null,null,null,null,null,null,null,null,null,null,null,null,null,null,null,null,null,null,null,null,null,null,null,null,null,null,null,null,null,null,null,null,null,null,null,null,"","",null,null,null,null,null,null,"",""]
[null,null,null,null,null,null,null,null,null,null,null,null,null,null,null,null,null,null,null,null,null,null,null,null,null,null,null,null,null,null,null,null,null,null,null,null,null,null,null,"","",null,null,null,null,null,null,"",""]
[null,null,null,null,null,null,null,null,null,null,null,null,null,null,null,null,null,null,null,null,null,null,null,null,null,null,null,null,null,null,null,null,null,null,null,null,null,null,null,"","",null,null,null,null,null,null,"",""]
[null,null,null,null,null,null,null,null,null,null,null,null,null,null,null,null,null,null,null,null,null,null,null,null,null,null,null,null,null,null,null,null,null,null,null,null,null,null,null,"","",null,null,null,null,null,null,"",""]
[null,null,null,null,null,null,null,null,null,null,null,null,null,null,null,null,null,null,null,null,null,null,null,null,null,null,null,null,null,null,null,null,null,null,null,null,null,null,null,"","",null,null,null,null,null,null,"",""]
[null,null,null,null,null,null,null,null,null,null,null,null,null,null,null,null,null,null,null,null,null,null,null,null,null,null,null,null,null,null,null,null,null,null,null,null,null,null,null,"","",null,null,null,null,null,null,"",""]
[null,null,null,null,null,null,null,null,null,null,null,null,null,null,null,null,null,null,null,null,null,null,null,null,null,null,null,null,null,null,null,null,null,null,null,null,null,null,null,"","",null,null,null,null,null,null,"",""]
[null,null,null,null,null,null,null,null,null,null,null,null,null,null,null,null,null,null,null,null,null,null,null,null,null,null,null,null,null,null,null,null,null,null,null,null,null,null,null,"","",null,null,null,null,null,null,"",""]
[null,null,null,null,null,null,null,null,null,null,null,null,null,null,null,null,null,null,null,null,null,null,null,null,null,null,null,null,null,null,null,null,null,null,null,null,null,null,null,"","",null,null,null,null,null,null,"",""]
[null,null,null,null,null,null,null,null,null,null,null,null,null,null,null,null,null,null,null,null,null,null,null,null,null,null,null,null,null,null,null,null,null,null,null,null,null,null,null,"","",null,null,null,null,null,null,"",""]
[null,null,null,null,null,null,null,null,null,null,null,null,null,null,null,null,null,null,null,null,null,null,null,null,null,null,null,null,null,null,null,null,null,null,null,null,null,null,null,"","",null,null,null,null,null,null,"",""]
[null,null,null,null,null,null,null,null,null,null,null,null,null,null,null,null,null,null,null,null,null,null,null,null,null,null,null,null,null,null,null,null,null,null,null,null,null,null,null,"","",null,null,null,null,null,null,"",""]
[null,null,null,null,null,null,null,null,null,null,null,null,null,null,null,null,null,null,null,null,null,null,null,null,null,null,null,null,null,null,null,null,null,null,null,null,null,null,null,"","",null,null,null,null,null,null,"",""]
[null,null,null,null,null,null,null,null,null,null,null,null,null,null,null,null,null,null,null,null,null,null,null,null,null,null,null,null,null,null,null,null,null,null,null,null,null,null,null,"","",null,null,null,null,null,null,"",""]
[null,null,null,null,null,null,null,null,null,null,null,null,null,null,null,null,null,null,null,null,null,null,null,null,null,null,null,null,null,null,null,null,null,null,null,null,null,null,null,{"$f":"IF(ISBLANK(AH165),\"\",SUM(AH165:AL165))","v":""},{"$f":"IF(ISBLANK(AH165),\"\",AN165/$N165/0.092903)","v":""},null,null,null,null,null,null,{"$f":"IF(ISBLANK(AP165),\"\",SUM(AP165:AT165))","v":""},{"$f":"IF(ISBLANK(AP165),\"\",AV165/$N165/0.092903)","v":""}]
[null,null,null,null,null,null,null,null,null,null,null,null,null,null,null,null,null,null,null,null,null,null,null,null,null,null,null,null,null,null,null,null,null,null,null,null,null,null,null,"","",null,null,null,null,null,null,"",""]
[null,null,null,null,null,null,null,null,null,null,null,null,null,null,null,null,null,null,null,null,null,null,null,null,null,null,null,null,null,null,null,null,null,null,null,null,null,null,null,"","",null,null,null,null,null,null,"",""]
[null,null,null,null,null,null,null,null,null,null,null,null,null,null,null,null,null,null,null,null,null,null,null,null,null,null,null,null,null,null,null,null,null,null,null,null,null,null,null,"","",null,null,null,null,null,null,"",""]
[null,null,null,null,null,null,null,null,null,null,null,null,null,null,null,null,null,null,null,null,null,null,null,null,null,null,null,null,null,null,null,null,null,null,null,null,null,null,null,"","",null,null,null,null,null,null,"",""]
[null,null,null,null,null,null,null,null,null,null,null,null,null,null,null,null,null,null,null,null,null,null,null,null,null,null,null,null,null,null,null,null,null,null,null,null,null,null,null,"","",null,null,null,null,null,null,"",""]
[null,null,null,null,null,null,null,null,null,null,null,null,null,null,null,null,null,null,null,null,null,null,null,null,null,null,null,null,null,null,null,null,null,null,null,null,null,null,null,"","",null,null,null,null,null,null,"",""]
[null,null,null,null,null,null,null,null,null,null,null,null,null,null,null,null,null,null,null,null,null,null,null,null,null,null,null,null,null,null,null,null,null,null,null,null,null,null,null,"","",null,null,null,null,null,null,"",""]
[null,null,null,null,null,null,null,null,null,null,null,null,null,null,null,null,null,null,null,null,null,null,null,null,null,null,null,null,null,null,null,null,null,null,null,null,null,null,null,"","",null,null,null,null,null,null,"",""]
[null,null,null,null,null,null,null,null,null,null,null,null,null,null,null,null,null,null,null,null,null,null,null,null,null,null,null,null,null,null,null,null,null,null,null,null,null,null,null,"","",null,null,null,null,null,null,"",""]
[null,null,null,null,null,null,null,null,null,null,null,null,null,null,null,null,null,null,null,null,null,null,null,null,null,null,null,null,null,null,null,null,null,null,null,null,null,null,null,"","",null,null,null,null,null,null,"",""]
[null,null,null,null,null,null,null,null,null,null,null,null,null,null,null,null,null,null,null,null,null,null,null,null,null,null,null,null,null,null,null,null,null,null,null,null,null,null,null,"","",null,null,null,null,null,null,"",""]
[null,null,null,null,null,null,null,null,null,null,null,null,null,null,null,null,null,null,null,null,null,null,null,null,null,null,null,null,null,null,null,null,null,null,null,null,null,null,null,"","",null,null,null,null,null,null,"",""]
[null,null,null,null,null,null,null,null,null,null,null,null,null,null,null,null,null,null,null,null,null,null,null,null,null,null,null,null,null,null,null,null,null,null,null,null,null,null,null,"","",null,null,null,null,null,null,"",""]
[null,null,null,null,null,null,null,null,null,null,null,null,null,null,null,null,null,null,null,null,null,null,null,null,null,null,null,null,null,null,null,null,null,null,null,null,null,null,null,"","",null,null,null,null,null,null,"",""]
[null,null,null,null,null,null,null,null,null,null,null,null,null,null,null,null,null,null,null,null,null,null,null,null,null,null,null,null,null,null,null,null,null,null,null,null,null,null,null,"","",null,null,null,null,null,null,"",""]
[null,null,null,null,null,null,null,null,null,null,null,null,null,null,null,null,null,null,null,null,null,null,null,null,null,null,null,null,null,null,null,null,null,null,null,null,null,null,null,"","",null,null,null,null,null,null,"",""]
[null,null,null,null,null,null,null,null,null,null,null,null,null,null,null,null,null,null,null,null,null,null,null,null,null,null,null,null,null,null,null,null,null,null,null,null,null,null,null,"","",null,null,null,null,null,null,"",""]
[null,null,null,null,null,null,null,null,null,null,null,null,null,null,null,null,null,null,null,null,null,null,null,null,null,null,null,null,null,null,null,null,null,null,null,null,null,null,null,"","",null,null,null,null,null,null,"",""]
[null,null,null,null,null,null,null,null,null,null,null,null,null,null,null,null,null,null,null,null,null,null,null,null,null,null,null,null,null,null,null,null,null,null,null,null,null,null,null,"","",null,null,null,null,null,null,"",""]
[null,null,null,null,null,null,null,null,null,null,null,null,null,null,null,null,null,null,null,null,null,null,null,null,null,null,null,null,null,null,null,null,null,null,null,null,null,null,null,"","",null,null,null,null,null,null,"",""]
[null,null,null,null,null,null,null,null,null,null,null,null,null,null,null,null,null,null,null,null,null,null,null,null,null,null,null,null,null,null,null,null,null,null,null,null,null,null,null,"","",null,null,null,null,null,null,"",""]
[null,null,null,null,null,null,null,null,null,null,null,null,null,null,null,null,null,null,null,null,null,null,null,null,null,null,null,null,null,null,null,null,null,null,null,null,null,null,null,"","",null,null,null,null,null,null,"",""]
[null,null,null,null,null,null,null,null,null,null,null,null,null,null,null,null,null,null,null,null,null,null,null,null,null,null,null,null,null,null,null,null,null,null,null,null,null,null,null,"","",null,null,null,null,null,null,"",""]
[null,null,null,null,null,null,null,null,null,null,null,null,null,null,null,null,null,null,null,null,null,null,null,null,null,null,null,null,null,null,null,null,null,null,null,null,null,null,null,"","",null,null,null,null,null,null,"",""]
[null,null,null,null,null,null,null,null,null,null,null,null,null,null,null,null,null,null,null,null,null,null,null,null,null,null,null,null,null,null,null,null,null,null,null,null,null,null,null,"","",null,null,null,null,null,null,"",""]
[null,null,null,null,null,null,null,null,null,null,null,null,null,null,null,null,null,null,null,null,null,null,null,null,null,null,null,null,null,null,null,null,null,null,null,null,null,null,null,"","",null,null,null,null,null,null,"",""]
[null,null,null,null,null,null,null,null,null,null,null,null,null,null,null,null,null,null,null,null,null,null,null,null,null,null,null,null,null,null,null,null,null,null,null,null,null,null,null,"","",null,null,null,null,null,null,"",""]
[null,null,null,null,null,null,null,null,null,null,null,null,null,null,null,null,null,null,null,null,null,null,null,null,null,null,null,null,null,null,null,null,null,null,null,null,null,null,null,"","",null,null,null,null,null,null,"",""]
[null,null,null,null,null,null,null,null,null,null,null,null,null,null,null,null,null,null,null,null,null,null,null,null,null,null,null,null,null,null,null,null,null,null,null,null,null,null,null,"","",null,null,null,null,null,null,"",""]
[null,null,null,null,null,null,null,null,null,null,null,null,null,null,null,null,null,null,null,null,null,null,null,null,null,null,null,null,null,null,null,null,null,null,null,null,null,null,null,"","",null,null,null,null,null,null,"",""]
[null,null,null,null,null,null,null,null,null,null,null,null,null,null,null,null,null,null,null,null,null,null,null,null,null,null,null,null,null,null,null,null,null,null,null,null,null,null,null,"","",null,null,null,null,null,null,"",""]
[null,null,null,null,null,null,null,null,null,null,null,null,null,null,null,null,null,null,null,null,null,null,null,null,null,null,null,null,null,null,null,null,null,null,null,null,null,null,null,"","",null,null,null,null,null,null,"",""]
[null,null,null,null,null,null,null,null,null,null,null,null,null,null,null,null,null,null,null,null,null,null,null,null,null,null,null,null,null,null,null,null,null,null,null,null,null,null,null,"","",null,null,null,null,null,null,"",""]
["Do not use rows ",null,null,null,null,null,null,null,null,null,null,null,null,null,null,null,null,null,null,null,null,null,null,null,null,null,null,null,null,null,null,null,null,null,null,null,null,null,null,"","",null,null,null,null,null,null,"",""]
["below row 200",null,null,null,null,null,null,null,null,null,null,null,null,null,null,null,null,null,null,null,null,null,null,null,null,null,null,null,null,null,null,null,null,null,null,null,null,null,null,"","",null,null,null,null,null,null,"",""]

{"sheet":"SMQ menu","index":1,"n_rows":11,"n_cols":11,"rows_kept":11,"cut":false,"hidden":true,"merged":[]}
[]
[null,"Concrete",null,"Steel Reinforcement",null,"Masonry",null,"Steel",null,"Timber"]
[null,"2500 PSI","Cubic Yards","Rebar","Tons","Normal Weight Masonry Block","Tons","Rolled Steel Shapes","Tons","Softwood Lumber","Cubic Feet"]
[null,"3000 PSI","Cubic Yards","Welded Wire Reinforcement","Tons","Light Weight Masonry Block","Tons","Plate Steel Fabrications","Tons","Softwood Plywood","Cubic Feet"]
[null,"4000 PSI","Cubic Yards","Post Tensioning","Tons","Masonry Grout","Cubic Yards","Tube Steel (HSS)","Tons","Glulam","Cubic Feet"]
[null,"5000 PSI","Cubic Yards",null,null,"Mortar","Cubic Yards","Open Web Steel Joists","Tons","Cross Laminated Timber","Cubic Feet"]
[null,"6000 PSI","Cubic Yards",null,null,null,null,"Steel Deck","Tons","Laminated Veneer Lumber","Cubic Feet"]
[null,"8000 PSI","Cubic Yards",null,null,null,null,"Cold Formed Metal Framing","Tons","Wood I Joists","LBS"]
[null,"3000 PSI LW","Cubic Yards"]
[null,"4000 PSI LW","Cubic Yards"]
[null,"5000 PSI LW","Cubic Yards"]